Cogmind - Beta 16 @@@ ROGUE MODE // 2025.11.17 @ 18:52:05 Player: tthaar Result: Destroyed by Y-45 Defender with Heavy Assault Rifle Performance ------------- Evolutions (1) 500 Regions Visited (2) 400 Robots Destroyed (25) 125 Value Destroyed (667) 667 Prototype IDs (4) 80 Alien Tech Used (0) 0 Bonus (0) 0 TOTAL SCORE: 1772 Bonus ------- None Cogmind --------- Core Integrity 0/400 Matter 400/400 Energy 99/100 System Corruption 0% Temperature Cool (9) Movement Core (150) Ox2 Location -9/Materials Parts ------- > --- POWER (1) -------- (None) > --- PROPULSION (3) --- (None) > --- UTILITY (3) ------ Small Storage Unit Medium Matter Pod > --- WEAPON (2) ------- (None) > --- INVENTORY (8) ---- Ion Engine Improved Ion Engine Heat Sink Cooling System Visual Processing Unit Peak State ------------ > --- POWER ------------ Improved Ion Engine > --- PROPULSION ------- Aluminum Leg Aluminum Leg Aluminum Leg > --- UTILITY ---------- Small Storage Unit Medium Matter Pod Core Shielding > --- WEAPON ----------- Advanced Beam Cannon Heavy Assault Rifle > --- INVENTORY -------- Ion Engine Improved Ion Engine Aluminum Leg Heat Sink Cooling System Visual Processing Unit Advanced Beam Cannon Grenade Launcher [Rating: 14] Favorites ----------- Power Ion Engine Engine Ion Engine Propulsion Aluminum Leg Leg Aluminum Leg Utility Small Storage Unit Storage Small Storage Unit Protection Core Shielding Weapon EM Pulse Gun Energy Gun EM Pulse Gun Energy Cannon Advanced Beam Cannon Ballistic Gun Assault Rifle Ballistic Cannon Light Cannon Launcher Grenade Launcher Build | -11 -10 -9 ------- Run | Yrd Mat Mat Slots Evolved 2 | . . 2 Power . | . . . Propulsion 1 | . . 1 Utility 1 | . . 1 Weapon . | . . . Parts Attached 21 | 6 6 9 Power 4 | 1 1 2 Engine 4 | 1 1 2 Core . | . . . Reactor . | . . . Propulsion 5 | 2 1 2 Treads . | . . . Leg 5 | 2 1 2 Wheel . | . . . Hover . | . . . Flight . | . . . Utility 3 | 1 1 1 Device . | . . . Storage 2 | 1 1 . Processor . | . . . Hackware . | . . . Protection 1 | . . 1 Artifact . | . . . Weapon 9 | 2 3 4 Energy Gun 3 | 1 2 . Energy Cannon 2 | . . 2 Ballistic Gun 2 | 1 . 1 Ballistic Cannon 1 | . 1 . Launcher 1 | . . 1 Special Weapon . | . . . Impact Weapon . | . . . Slashing Weapon . | . . . Piercing Weapon . | . . . Special Melee Weapon . | . . . Unidentified Prototypes . | . . . Parts Lost 14 | . 3 11 Power 2 | . 1 1 Propulsion 5 | . 1 4 Utility 1 | . . 1 Weapon 6 | . 1 5 Highest Loss Streak 8 | . 2 8 To Critical Strikes . | . . . Average Backups 6 | 3 6 7 Power 1 | . . 1 Propulsion 2 | 2 3 1 Utility 1 | . . 2 Weapon 1 | . 2 1 Tool/Special . | . . . Unused Backups 10 | . 3 7 Power 2 | . . 2 Propulsion 5 | . 3 2 Utility 3 | . . 3 Weapon . | . . . Tool/Special . | . . . Average Slot Usage (%) 90 | . 97 80 Engine 10 | . 13 5 Leg 27 | . 27 26 Storage 24 | . 26 22 Protection 2 | . . 5 Energy Gun 10 | . 13 6 Energy Cannon 1 | . . 4 Ballistic Gun 5 | . 7 2 Ballistic Cannon 6 | . 6 6 Peak Build Rating 14 | 6 7 14 Average Rating 7 | 5 6 9 On Entrance 4 | . 6 7 Avg Prop Armor Cover (%) . | . . . Naked Turns . | . . . Heaviest Build 22 | 14 17 22 Greatest Support 30 | 20 20 30 Greatest Overweight (x) 4 | 1 . 4 Average Overweight (x) . | . . . Largest Inventory Capacity 8 | 8 8 8 Average Capacity 7 | 7 8 8 Most Carried 8 | 6 8 8 Average Carried 6 | 4 6 7 Final Capacity 8 | 8 8 8 Final Carried 8 | 6 8 5 Class Distribution -------------------- 84% | Mutant 15% | Scavenger-Mutant Dominant Class ---------------- Mutant | -10/Materials Mutant | -9/Materials Resources | -11 -10 -9 ----------- Run | Yrd Mat Mat Matter Collected 793 | 206 340 247 Remotely . | . . . Salvage Created 666 | . 334 332 Parts 50 | . 29 21 Haulers Intercepted . | . . . Recyclers Shooed . | . . . Parts Field Recycled . | . . . Retrieved Matter . | . . . Parts Self-Destructed . | . . . Prevented . | . . . Parts Restored . | . . . Kills | -11 -10 -9 ------- Run | Yrd Mat Mat Combat Hostiles Destroyed 22 | . 14 8 Guns 14 | . 9 5 Cannons 6 | . 4 2 AOE 2 | . 1 1 Classes Destroyed 6 | . 4 2 Operator 1 | . 1 . Watcher 2 | . 2 . Swarmer 9 | . 9 . Grunt 8 | . 5 3 Duelist 1 | . . 1 Sentry 4 | . . 4 Best Kill Streak 6 | . 6 2 Combat Bots Only 6 | . 6 2 Max Kills in Single Turn 2 | . 2 1 Gunslinging . | . . . Exploded 1 | . 1 1 Melee . | . . . Uniques/NPCs Destroyed . | . . . Combat | -11 -10 -9 -------- Run | Yrd Mat Mat Hostile Shots Fired 214 | . 79 135 Missed 64 | . 25 39 Hits 150 | . 54 96 Projectile 150 | . 54 96 Damage Taken 1834 | . 472 1362 Core 494 | . 84 410 Absorbed by Shields . | . . . Redirected to Shielding 42 | . . 42 Core Remaining (%) 83 | 100 66 . Volleys Fired 73 | . 31 42 Largest 2 | . 2 2 Hottest 98 | . 70 98 Shots Fired 129 | . 61 68 Gun 70 | . 37 33 Cannon 54 | . 24 30 Launcher 5 | . . 5 Special . | . . . Kinetic 63 | . 31 32 Thermal 10 | . . 10 Explosive 5 | . . 5 Electromagnetic 51 | . 30 21 Robot Hit Streak 8 | . 4 8 Robot Miss Streak 5 | . 3 5 Penetration Max . | . . . Secondary Targets . | . . . Shots Hit Robots 66 | . 30 36 Core Hits 35 | . 20 15 Critical Kills . | . . . Critical Parts Destroyed . | . . . Critical Strikes . | . . . Melee Attacks . | . . . Impact . | . . . Slashing . | . . . Piercing . | . . . Sneak Attacks . | . . . Combat Hostiles . | . . . Follow-up Attacks . | . . . Damage Inflicted 1195 | . 527 668 Guns 633 | . 314 319 Cannons 432 | . 152 280 Explosions 130 | . 61 69 Melee . | . . . Ramming . | . . . Kinetic 537 | . 231 306 Thermal 184 | . 61 123 Explosive 69 | . . 69 Electromagnetic 405 | . 235 170 Impact . | . . . Slashing . | . . . Piercing . | . . . Highest Corruption . | . . . Average Corruption . | . . . Corruption Purged . | . . . Corruption Blocked . | . . . Overload Shots . | . . . Overflow Damage . | . . . Projectiles . | . . . Explosions . | . . . Melee . | . . . Knockbacks . | . . . Impact . | . . . Kinetic . | . . . Secondary . | . . . Self-Inflicted Damage 37 | . . 37 Shots 1 | . . 1 Rammed . | . . . Targets Rammed . | . . . Kicked . | . . . Crushed . | . . . Highest Temperature 256 | . 54 256 Average Temperature 50 | . 22 94 Received Heat Transfer 510 | . 66 444 Effects 2 | . . 2 Interference 2 | . . 2 Siege Activations . | . . . Martial Activations . | . . . Shielding Activations . | . . . Robots Disrupted . | . . . Combat Hostiles . | . . . Robots Corrupted . | . . . Combat Hostiles . | . . . Parts Fried 1 | . 1 . Impact Corruptions . | . . . Robots Melted . | . . . Combat Hostiles . | . . . Parts Melted . | . . . Heat Transferred 322 | . 100 222 Parts Sabotaged . | . . . Parts Stolen . | . . . Parts Stripped . | . . . Power Chain Reactions 1 | . 1 . Alert | -11 -10 -9 ------- Run | Yrd Mat Mat Maximum Alert Level 1 | . 1 . Low Security (%) 92 | 100 85 100 Level 1 7 | . 14 . Level 2 . | . . . Level 3 . | . . . Level 4 . | . . . Level 5 . | . . . High Security . | . . . Max Security . | . . . Peak Influence 261 | . 261 127 Initial 102 | . . 102 Average 68 | . 75 83 Influence Increases 668 | . 437 231 Destroy 0b10 Robot/C 440 | . 280 160 Destroy 0b10 Robot/NC 15 | . 15 . Destroy Leader 104 | . 54 50 Successful Hack 17 | . 12 5 Disable Machine 45 | . 45 . Destroy Structure 17 | . 1 16 Lose Combat Pursuer 30 | . 30 . Influence Decreases 651 | . 195 456 Entered New Map 140 | . . 140 Time Decay 371 | . 165 206 Lost Part 140 | . 30 110 Squads Dispatched 3 | . 2 1 Investigation 2 | . 1 1 Extermination . | . . . Reinforcement 1 | . 1 . Assault . | . . . Garrison . | . . . Intercept . | . . . Searches Triggered . | . . . Construction Impeded . | . . . Haulers Reinforced . | . . . Active Scanning Responses . | . . . Cargo Convoy Interrupts . | . . . Stealth | -11 -10 -9 --------- Run | Yrd Mat Mat Distress Signals 2 | . 1 1 Communications Jammed . | . . . Distress Signals . | . . . Times Spotted 29 | . 18 11 Peak Tracking Total 5 | . 5 4 Tactical Retreats 1 | . 1 . Traps | -11 -10 -9 ------- Run | Yrd Mat Mat Traps Triggered 2 | . 1 1 Indirectly . | . . . Trap Hack Attempts . | . . . Triggered . | . . . Disarmed . | . . . Reprogrammed . | . . . Reused . | . . . Traps Extracted . | . . . Installed . | . . . Triggered . | . . . Machines | -11 -10 -9 ---------- Run | Yrd Mat Mat Machines Disabled 4 | . 4 . Max in Single Turn 1 | . 1 . Machines Repaired . | . . . Machines Dismantled . | . . . Machines Sabotaged . | . . . Overloaded Fab Kills . | . . . Hacking | -11 -10 -9 --------- Run | Yrd Mat Mat Machines Accessed 6 | . 5 1 Terminals 5 | . 4 1 Fabricators . | . . . Repair Stations . | . . . Recycling Units 1 | . 1 . Scanalyzers . | . . . Garrison Access . | . . . Total Hacks 18 | . 15 3 Successful 7 | . 5 2 Failed 11 | . 10 1 Catastrophic . | . . . Database Lockouts . | . . . Manual 7 | . 6 1 Terminals 15 | . 12 3 Fabricators . | . . . Repair Stations . | . . . Recycling Units 3 | . 3 . Scanalyzers . | . . . Garrison Access . | . . . Terminal Hacks 5 | . 3 2 Record 1 | . . 1 Prototype ID Bank 2 | . 1 1 Terminal Index 1 | . 1 . Registered Components 1 | . 1 . Fabricator Hacks . | . . . Repair Station Hacks . | . . . Recycling Unit Hacks 2 | . 2 . Recycle Component 1 | . 1 . Report Inventory 1 | . 1 . Scanalyzer . | . . . Garrison Access Hacks . | . . . Unauthorized Hacks . | . . . Terminals . | . . . Fabricators . | . . . Repair Stations . | . . . Recycling Units . | . . . Scanalyzers . | . . . Garrison Access . | . . . Data Cores Recovered . | . . . Used . | . . . Hacking Detections 6 | . 5 1 Full Trace Events 2 | . 2 . Feedback Events . | . . . Feedback Blocked . | . . . Robot Schematics Acquired . | . . . Robots Built . | . . . Authchips . | . . . Time . | . . . Total Robot Build Rating . | . . . Part Schematics Acquired . | . . . Parts Built . | . . . Authchips . | . . . Time . | . . . Total Part Build Rating . | . . . Part Studies Acquired . | . . . Parts Repaired . | . . . Time . | . . . Parts Recycled 1 | . 1 . Recycled Matter . | . . . Retrieved Matter . | . . . Retrieved Components . | . . . Parts Scanalyzed . | . . . Part Schematics Acquired . | . . . Parts Damaged . | . . . Bothacking | -11 -10 -9 ------------ Run | Yrd Mat Mat Used RIF Installer . | . . . Robots Hacked . | . . . Non-combat . | . . . Combat . | . . . Robot Hacks Applied . | . . . Relay Couplers Released . | . . . Fabnet Peak Effective % . | . . . Robots Rewired . | . . . Allies Hacked . | . . . Hacks Repelled . | . . . Allies | -11 -10 -9 -------- Run | Yrd Mat Mat Total Allies . | . . . Largest Group . | . . . Highest-Rated Group . | . . . Highest-Rated Ally . | . . . Total Orders . | . . . Ally Attacks . | . . . Total Damage . | . . . Kills . | . . . Allies Corrupted . | . . . Allies Melted . | . . . Intel | -11 -10 -9 ------- Run | Yrd Mat Mat Active Infowar (turns) . | . . . Robot Analysis Total . | . . . Derelict Logs Recovered . | . . . Drone Launches . | . . . Drone Recoveries . | . . . Exploration | -11 -10 -9 ------------- Run | Yrd Mat Mat Turns Passed 1203 | 159 619 425 Spaces Moved 641 | 124 305 212 Core 20 | 9 . 11 Treads . | . . . Legs 621 | 115 305 201 Wheels . | . . . Hover . | . . . Flight . | . . . Fastest Speed 50 | 50 120 120 Average Speed 122 | 116 120 129 Slowest Speed 250 | 120 120 250 Overloaded Moves . | . . . Propulsion Burnouts . | . . . Robots Hopped . | . . . Potential Cave-ins . | . . . Cave-ins Triggered . | . . . Exploration Rate (%) 24 | 6 46 20 Regions Visited 2 Branch Regions . Pre-discovered Areas . | . . . Known Exits Taken . | . . . Unknown Exits Taken 2 | 1 1 . Scrap Searched . | . . . Spaces Dug . | . . . Terrain Destroyed 17 | . 1 16 Melee . | . . . Projectile 1 | . . 1 AOE 16 | . 1 15 Terrain Rammed . | . . . Walls Destroyed . | . . . Machines Disabled . | . . . Actions | -11 -10 -9 --------- Run | Yrd Mat Mat Total 926 | 135 495 296 Wait 158 | . 139 19 Move 639 | 123 304 212 Hop . | . . . Pick Up 20 | 6 9 5 Fast Attach 13 | 6 4 3 Attach 8 | . 3 5 Detach . | . . . Swap 6 | . 2 4 Drop 9 | . 3 6 Fire 73 | . 31 42 Melee . | . . . Ram . | . . . Kick . | . . . Crush . | . . . Escape Stasis . | . . . Rewire . | . . . Trap . | . . . Miscellaneous . | . . . Route ------- -11/Scrapyard -10/Materials (discovered 2 exits: *Mat / [*Min]) -9/Materials (discovered 1 exit: [*Sto]) History --------- Turn | Location | Event 6 | -11/Scrapyard | Discovered new exit (range 15) 160 | -11/Scrapyard | Entered Materials 305 | -10/Materials | Build established: Mutant 485 | -10/Materials | Discovered new exit (range 15) 762 | -10/Materials | Discovered new exit (range 14) 779 | -10/Materials | Entered another Materials area 779 | -9/Materials | Evolved 2 slots: Propulsion x1, Utility x1 1155 | -9/Materials | Core integrity fell below 50% 1177 | -9/Materials | Discovered new exit (range 16) 1185 | -9/Materials | Lost 8 parts (1p3n1u3w) 1190 | -9/Materials | Core integrity fell below 20% 1204 | -9/Materials | Destroyed by Y-45 Defender with Heavy Assault Rifle Last Messages --------------- 01160_ U-05 Engineer lays Concrete. 01160_ K-01 Serf collects debris. 01161_ U-05 Engineer lays Concrete. 01162_ U-05 Engineer builds a Wall. 01163_ K-01 Serf collects debris. 01164_ U-05 Engineer lays Concrete. 01167_ K-01 Serf collects debris. 01167_ U-05 Engineer lays Concrete. 01170_ K-01 Serf collects debris. 01171_ U-05 Engineer lays Concrete. 01174_ K-01 Serf collects debris. 01174_ U-05 Engineer lays Concrete. 01177_ EXIT=FOUND 01177_ K-01 Serf collects debris. 01177_ U-05 Engineer builds a Wall. 01181_ K-01 Serf collects debris. 01181_ U-05 Engineer builds a Wall. 01186_ K-01 Serf collects debris. 01195_ Adv. Beam Cannon destroyed. 01197_ Aluminum Leg destroyed. Map ----- +----------------------------------------------------+ | ????????????????????????????????????? | | ????????????????????????????????????? | | ????????????????????????????????????? | | ????????????????????????????????????? | | ????????????????????????????????????? | | ????????????????????????????????????? | | ????????????????????????????????????? | | ????????????????????????????????????? | | ????????????????????????????????????? | | ???????????????????????? ???????????? | | ??????????????????????? ???????????? | | ??????????????????????? #??????????? | | ??????????????????????? +??????????? | | ??????????????????????? #??????????? | | ???????????????????????# #??????????? | | ???????????????????????# #??????????? | | ???????????????????????# #??????????? | | ???????????????????????# #??????????? | | ???????????????????????# #??????????? | | ?????????????????????### ###????????? | | ?????????????????????# #????????? | | ?????????????????????# #????????? | | ?????????????????????# Y +????????? | | ?????????????????????# #????????? | | ?????????????????????# #????????? | | ?????????????????????## @##????????? | | ??????????????????????# #?????????? | | ??????????????????????# #?????????? | | ??????????????????????# #?????????? | | ????????????????????### ###???????? | | ????????????????????# ] #???????? | | ????????????????????# #???????? | | ???????????????????## #???????? | | ???????????????????+ g /???????? | | ???????????????????## # ??????? | | ????????????????????# # "?????? | | ????????????????????# #?" ????? | | ????????????????????## ##?? ???? | | ?????????????????????# #???? ???? | | ?????????????????????# #????????? | | ?????????????????????# #????????? | | ?????????????????????# #????????? | | ?????????????????????# ## #####?? | | ?????????????????##### # ?? | | ?????????????????# ## # ""?? | | ???????????????### !=! # ""?? | | ???????????????# ! =[ # ""?? | | ???????????????###! [ + # | | ????????????????# ! #* """? | | ????????????????##! # ""?? | +----------------------------------------------------+ Best States ------------- Heat Dissipation 28 Energy Generation 12 Energy Capacity 265 Matter Stores 400 Matter Capacity 400 Sight Range 16 Terrain Scan Density 10 Core Shielding 20 Evasion (%) 55 Item Schematics ----------------- None Robot Schematics ------------------ None Fabricated ------------ Nothing Repaired ---------- Nothing Studied --------- None Alien Tech Used ----------------- None Achievements -------------- None Challenges ------------ None Game ------ Seed HoverGaussMeganuke Manual? 0 Play Time 00:21:04 Cumulative 15.8 hours Start 2025.11.17 @ 18:33:01 End 2025.11.17 @ 18:52:05 Sessions 1 Manual Loads 0 Difficulty Rogue Special Mode None Game No. 15 Rogue 15 Adventurer 0 Explorer 0 Win Type - Total 0 Types 0/0/0/0/0/0/0/0/0/0 Lore% 9 Gallery% 13 Achievement% 13 Wizard Run 0 Options --------- Layout 1 ASCII 0 Keyboard 0 Movement Mouse Keybinds 0 Fullscreen 2 Font 48/Smallcaps Map View 50x35 Zoom Use 0% Tactical HUD 1 Map Filters NONE Filters NONE Steam 1 RUN: abef1e9e-1927-448b-bec8-86737449b8c0